bitfinex/quotes_SOLUSD_20251130
["timestamp","ask_amount","ask_price","bid_price","bid_amount"]
[1764463995674,3.26896703,136.09,136.08,0.77]
[1764464000165,3.26896703,136.09,136.08,8.11861845]
[1764464006948,3.97896703,136.09,136.08,0.1]
[1764464022660,2.80289812,136.09,136.08,0.1]
[1764464024080,10.15097659,136.09,136.08,0.1]
[1764464024261,13.37097659,136.09,136.08,0.1]
[1764464025166,12.66097659,136.09,136.08,0.1]
[1764464025984,13.37097659,136.09,136.08,0.1]
[1764464027280,12.66097659,136.09,136.08,0.1]
[1764464029185,3.22,136.09,136.08,0.76]
[1764464031185,17.018864,136.13,136.08,0.76]
[1764464031488,5.31289812,136.12,136.08,0.76]
[1764464031985,2.09289812,136.11,136.08,0.76]
[1764464032369,2.09289812,136.11,136.08,8.10840547]
[1764464032689,3.93,136.12,136.09,0.66]
[1764464033191,6.02289812,136.12,136.09,0.66]
[1764464033491,13.36938896,136.12,136.09,0.66]
[1764464034484,12.65938896,136.12,136.09,0.66]
[1764464035283,13.31938896,136.12,136.09,0.66]
[1764464035990,2.09289812,136.1,136.08,0.8]
[1764464036190,2.09289812,136.09,136.08,0.8]
[1764464037277,2.09289812,136.1,136.08,0.8]
[1764464040364,8.00708034,136.11,136.08,0.8]
[1764464040569,10.09997846,136.11,136.08,0.8]
[1764464042489,18.40176212,136.09,136.08,0.1]
[1764464042789,21.62176212,136.09,136.08,0.1]
[1764464042985,29.62984059,136.09,136.08,0.1]
[1764464048675,10.56807847,136.09,136.08,0.8]
[1764464048877,13.32025293,136.11,136.08,0.8]
[1764464049092,2.09289812,136.1,136.08,0.8]
[1764464053974,13.32025293,136.11,136.08,0.8]
[1764464054186,12.66025293,136.11,136.08,0.8]
[1764464055687,13.32025293,136.11,136.08,0.8]
[1764464057186,5.31289812,136.12,136.08,8.14845497]
[1764464057585,5.31289812,136.12,136.09,0.7]
[1764464058694,12.65955623,136.12,136.09,0.7]
[1764464058891,13.31955623,136.12,136.09,0.7]
[1764464060683,2.09289812,136.11,136.09,0.7]
[1764464066612,2.75289812,136.11,136.09,0.7]
[1764464066809,2.09289812,136.11,136.09,0.7]
[1764464071391,2.75289812,136.11,136.09,0.7]
[1764464072514,2.09289812,136.11,136.09,0.7]
[1764464076126,11.22665811,136.12,136.09,0.7]
[1764464076127,3.22,136.12,136.09,0.7]
[1764464076499,5.31289812,136.12,136.09,0.7]
[1764464077223,5.31289812,136.12,136.09,8.04794997]
[1764464077409,5.31289812,136.12,136.1,0.67]
[1764464079802,2.09289812,136.12,136.1,0.67]
[1764464082524,3.26858953,136.12,136.1,0.67]
[1764464093435,3.26858953,136.12,136.1,0.67]
[1764464103440,3.26858953,136.11,136.1,0.67]
[1764464104032,3.98858953,136.11,136.08,8.12861845]
[1764464104339,3.26858953,136.1,136.08,8.12861845]
[1764464104519,3.26858953,136.1,136.09,0.68]
[1764464106762,3.26858953,136.11,136.09,0.68]
[1764464108236,3.98858953,136.11,136.09,0.68]
[1764464109340,3.26858953,136.11,136.09,0.68]
[1764464110840,6.48858953,136.13,136.09,8.02805599]
[1764464111050,7.20858953,136.13,136.09,8.02805599]
[1764464111223,7.20858953,136.13,136.1,0.68]
[1764464115548,7.34805599,136.12,136.1,0.68]
[1764464115749,7.20858953,136.13,136.1,0.68]
[1764464115924,21.90470151,136.13,136.1,0.68]
[1764464116321,21.18470151,136.13,136.1,8.02750382]
[1764464116523,21.18470151,136.13,136.11,0.68]
[1764464116933,21.90470151,136.13,136.11,0.68]
[1764464118243,7.20858953,136.13,136.11,0.68]
[1764464118441,7.34805599,136.12,136.11,0.68]
[1764464123855,10.61664552,136.12,136.11,0.68]
[1764464133568,10.61664552,136.12,136.09,14.69592465]
[1764464133769,3.26858953,136.11,136.1,0.68]
[1764464142666,2.09187488,136.11,136.1,0.68]
[1764464148162,9.43993087,136.12,136.1,0.68]
[1764464148361,9.43993087,136.12,136.08,11.38592466]
[1764464148570,2.09187488,136.09,136.08,0.1]
[1764464148869,2.09187488,136.09,136.08,0.78]
[1764464149272,21.72073888,136.1,136.08,0.78]
[1764464150189,19.628864,136.1,136.08,8.12827611]
[1764464150377,5.31187488,136.11,136.08,8.12827611]
[1764464150558,24.94073888,136.11,136.09,0.68]
[1764464152377,21.72073888,136.11,136.09,0.68]
[1764464153391,21.72073888,136.11,136.09,8.02801926]
[1764464153683,21.72073888,136.11,136.1,0.68]
[1764464155880,21.72073888,136.11,136.08,7.44861845]
[1764464156093,21.72073888,136.11,136.09,0.7]
[1764464162593,19.628864,136.11,136.09,0.7]
[1764464162764,112.76749952,136.15,136.09,0.7]
[1764464162765,0.67,136.17,136.1,25.40313206]
[1764464162966,2.09187488,136.16,136.1,47.12387094]
[1764464163181,2.09187488,136.16,136.11,0.7]
[1764464163487,2.09187488,136.16,136.12,3.22]
[1764464163890,2.09187488,136.16,136.13,8.04591934]
[1764464164095,2.09187488,136.16,136.14,0.7]
[1764464164794,2.09187488,136.16,136.14,22.76937139]
[1764464164996,7.34360912,136.18,136.15,0.7]
[1764464164997,8.01360912,136.18,136.15,0.7]
[1764464165192,2.09187488,136.16,136.14,22.06937139]
[1764464165493,2.09187488,136.16,136.15,0.7]
[1764464165689,7.34591934,136.17,136.15,8.04484024]
[1764464165889,3.22,136.2,136.15,8.04484024]
[1764464166074,2.09187488,136.18,136.16,0.7]
[1764464166792,3.89,136.2,136.16,0.7]
[1764464166996,2.09187488,136.19,136.16,8.04397802]
[1764464167193,2.09187488,136.19,136.16,30.10847991]
[1764464167386,2.09187488,136.19,136.17,0.7]
[1764464171598,2.09187488,136.19,136.17,8.04372817]
[1764464174097,2.09187488,136.19,136.17,30.10823006]
[1764464175500,2.09187488,136.19,136.17,0.7]
[1764464175679,2.76187488,136.19,136.17,0.7]
[1764464177281,2.09187488,136.18,136.17,0.7]
[1764464179401,2.76187488,136.18,136.13,84.86450189]
[1764464179607,2.09187488,136.15,136.13,0.7]
[1764464180593,2.09187488,136.15,136.13,8.04590755]
[1764464181106,2.09187488,136.16,136.13,7.34590755]
[1764464181292,2.09187488,136.16,136.14,0.67]
[1764464181528,2.81187488,136.16,136.14,0.67]
[1764464182308,2.09187488,136.15,136.14,0.67]
[1764464186885,2.81187488,136.16,136.14,0.67]
[1764464188709,2.09187488,136.16,136.14,0.67]
[1764464190609,2.09187488,136.16,136.14,8.01531955]
[1764464192519,2.09187488,136.16,136.15,0.66]
[1764464194814,5.31187488,136.17,136.15,8.00457869]
[1764464195207,5.31187488,136.17,136.15,7.34457869]
[1764464195514,5.31187488,136.17,136.15,8.00457869]
[1764464200619,2.09187488,136.16,136.15,8.00457869]
[1764464202524,3.26610265,136.16,136.15,8.00457869]
[1764464211443,3.26610265,136.16,136.13,7.34591934]
[1764464211733,3.26610265,136.15,136.13,8.00591934]
[1764464211937,3.26610265,136.15,136.14,0.66]
[1764464216437,3.26610265,136.15,136.12,7.63078214]
[1764464216638,3.26610265,136.15,136.13,0.66]
[1764464219642,3.26610265,136.15,136.13,8.00563711]
[1764464220538,3.26610265,136.15,136.13,7.34563711]
[1764464220742,3.26610265,136.15,136.14,0.66]
[1764464227147,3.26610265,136.15,136.13,7.34563711]
[1764464227348,3.26610265,136.15,136.13,8.00563711]
[1764464239060,3.22,136.17,136.14,0.66]
[1764464239242,3.26610265,136.16,136.14,0.66]
[1764464239954,3.98610265,136.16,136.14,0.66]
[1764464240161,3.26610265,136.15,136.13,0.66]
[1764464241058,3.26610265,136.15,136.13,8.00578922]
[1764464242956,3.26610265,136.15,136.13,7.34578922]
[1764464243263,3.26610265,136.15,136.14,0.66]
[1764464245362,0.72,136.16,136.14,0.66]
[1764464245562,3.98610265,136.16,136.14,0.66]
[1764464249160,3.26610265,136.16,136.14,0.66]
[1764464250066,3.26610265,136.16,136.14,8.00534178]
[1764464250845,3.26610265,136.17,136.14,8.00534178]
[1764464251045,3.26610265,136.17,136.15,0.66]
[1764464251449,3.98610265,136.17,136.15,0.66]
[1764464253072,3.98610265,136.17,136.15,8.00468809]
[1764464253644,3.26610265,136.17,136.15,8.00468809]
[1764464255372,3.26610265,136.17,136.15,0.66]
[1764464256353,3.26610265,136.17,136.15,8.00431671]
[1764464256978,3.26610265,136.17,136.16,0.66]
[1764464257152,3.26610265,136.17,136.15,8.00431671]
[1764464257353,3.26610265,136.17,136.16,8.00430082]
[1764464262553,3.26610265,136.18,136.16,8.00430082]
[1764464262755,3.26610265,136.18,136.17,0.66]
[1764464263471,3.26610265,136.18,136.16,0.66]
[1764464263671,3.26610265,136.2,136.16,0.94432314]
[1764464263987,3.26610265,136.19,136.16,0.94432314]
[1764464264156,3.26610265,136.19,136.17,0.66]
[1764464264557,2.08951698,136.19,136.17,0.66]
[1764464264772,2.08951698,136.19,136.18,7.3432222]
[1764464265284,2.08951698,136.19,136.18,8.0032222]
[1764464268788,2.08951698,136.2,136.18,8.0032222]
[1764464269284,2.08951698,136.19,136.18,8.0032222]
[1764464269491,2.08951698,136.2,136.18,8.0032222]
[1764464282592,2.74951698,136.2,136.18,8.0032222]
[1764464282777,2.08951698,136.19,136.18,8.0032222]
[1764464282977,2.08951698,136.19,136.17,7.34376147]
[1764464282978,2.74951698,136.19,136.17,7.34376147]
[1764464283278,2.74951698,136.18,136.17,7.34376147]
[1764464283486,2.08951698,136.18,136.17,7.34376147]
[1764464283875,2.08951698,136.19,136.17,8.05376147]
[1764464284093,2.74951698,136.2,136.17,8.05376147]
[1764464284275,2.08951698,136.19,136.17,8.05376147]
[1764464293010,2.74951698,136.19,136.17,8.05376147]
[1764464294126,2.08951698,136.19,136.17,8.05376147]
[1764464296203,2.74951698,136.18,136.14,63.51]
[1764464296504,2.08951698,136.16,136.14,63.51]
[1764464296684,2.08951698,136.16,136.14,0.28432314]
[1764464296880,2.08951698,136.16,136.15,0.71]
[1764464297506,2.08951698,136.17,136.15,0.71]
[1764464298308,2.08951698,136.17,136.15,8.05484024]
[1764464300108,2.74951698,136.17,136.15,8.05484024]
[1764464300912,2.08951698,136.17,136.15,8.05484024]
[1764464301085,2.74951698,136.17,136.15,8.05484024]
[1764464308606,0.66,136.17,136.15,8.05484024]
[1764464308821,2.74951698,136.17,136.15,8.05484024]
[1764464309805,2.08951698,136.17,136.16,0.68]
[1764464310318,2.08951698,136.17,136.15,8.02484024]
[1764464311633,2.74951698,136.16,136.13,11.24180951]
[1764464311807,2.08951698,136.15,136.11,18.36684477]
[1764464312014,2.74951698,136.15,136.12,0.68]
[1764464312327,2.08951698,136.14,136.12,0.96432314]
[1764464312521,2.08951698,136.14,136.12,8.31076253]
[1764464312826,2.08951698,136.14,136.13,0.68]
[1764464313223,2.74951698,136.15,136.13,0.68]
[1764464317044,22.06937139,136.16,136.13,8.16787318]
[1764464317336,2.74951698,136.17,136.13,8.16787318]
[1764464317639,2.74951698,136.17,136.14,0.68]
[1764464318942,2.74951698,136.17,136.14,8.02527992]
[1764464324165,2.08951698,136.16,136.14,8.02527992]
[1764464326637,3.26617348,136.16,136.14,8.02527992]
[1764464327242,3.92617348,136.16,136.14,8.02527992]
[1764464327747,3.26617348,136.16,136.14,8.02527992]
[1764464329446,3.92617348,136.16,136.14,7.34527992]
[1764464336449,3.92617348,136.16,136.14,8.01527992]
[1764464336656,3.26617348,136.15,136.13,8.01569778]
[1764464339758,3.92617348,136.16,136.13,7.34569778]
[1764464340052,3.92617348,136.16,136.14,0.67]
[1764464340852,3.92617348,136.16,136.13,8.01569778]
[1764464341037,3.92617348,136.16,136.14,0.67]
[1764464341238,3.92617348,136.16,136.13,8.01569778]
[1764464349246,3.26617348,136.15,136.13,8.01569778]
[1764464351972,3.92617348,136.16,136.13,8.01569778]
[1764464358483,3.92617348,136.16,136.14,0.67]
[1764464358787,3.92617348,136.16,136.12,7.63078214]
[1764464358965,3.92617348,136.16,136.13,0.67]
[1764464359387,3.92617348,136.16,136.13,8.01564579]
[1764464359764,0.7,136.15,136.13,8.01564579]
[1764464361791,0.7,136.15,136.12,0.28432314]
[1764464361988,0.7,136.15,136.09,0.68]
[1764464361989,3.26617348,136.13,136.09,0.68]
[1764464362288,3.26617348,136.11,136.09,0.68]
[1764464363393,3.26617348,136.11,136.09,8.02786909]
[1764464364094,3.96617348,136.12,136.09,8.02786909]
[1764464364695,3.96617348,136.12,136.09,8.02786909]
[1764464364895,3.96617348,136.12,136.1,0.68]
[1764464367091,3.96617348,136.12,136.09,7.34786909]
[1764464367302,0.7,136.12,136.1,0.7]
[1764464373298,0.7,136.12,136.1,3.96617348]
[1764464374472,0.68,136.13,136.1,0.7]
[1764464374807,8.02786909,136.13,136.1,0.7]
[1764464375103,0.68,136.13,136.1,0.7]
[1764464375312,8.02598955,136.13,136.1,0.7]
[1764464375608,8.02598955,136.13,136.1,3.96617348]
[1764464379596,15.37385864,136.13,136.1,3.96617348]
[1764464379826,0.68,136.12,136.1,0.7]
[1764464380928,7.34598955,136.13,136.1,3.96617348]
[1764464381216,0.68,136.13,136.1,0.7]
[1764464381388,0.68,136.13,136.1,3.96617348]
[1764464382409,8.02592696,136.13,136.1,3.96617348]
[1764464383896,8.02592696,136.13,136.1,0.7]
[1764464390199,8.02592696,136.13,136.1,8.04752213]
[1764464390399,8.02592696,136.13,136.11,0.7]
[1764464390613,8.02592696,136.13,136.1,8.04752213]
[1764464391617,0.68,136.13,136.1,8.04752213]
[1764464392000,12.70534676,136.14,136.11,0.7]
[1764464392208,29.64521333,136.15,136.11,0.7]
[1764464392407,36.31273546,136.15,136.11,0.7]
[1764464392701,0.68,136.14,136.11,0.7]
[1764464393927,8.02752213,136.14,136.11,0.7]
[1764464394111,0.68,136.13,136.11,0.7]
[1764464395220,2.09130419,136.14,136.11,0.7]
[1764464395520,2.78130419,136.14,136.11,0.7]
[1764464396916,0.69,136.13,136.11,0.7]
[1764464400521,10.12881927,136.14,136.11,0.7]
[1764464400910,2.78129714,136.14,136.11,0.7]
[1764464401526,2.09129714,136.14,136.11,0.7]
[1764464401732,10.12675019,136.14,136.11,0.7]
[1764464402223,7.34545305,136.14,136.11,0.7]
[1764464402526,10.12675019,136.14,136.11,0.7]
[1764464403226,17.47427232,136.14,136.11,0.7]
[1764464403437,10.12675019,136.14,136.11,0.7]
[1764464403726,28.96504731,136.15,136.11,8.0468115]
[1764464403913,37.00256944,136.15,136.11,8.0468115]
[1764464404118,37.00256944,136.15,136.12,0.7]
[1764464404607,0.69,136.14,136.12,0.7]
[1764464404938,2.78129714,136.14,136.1,0.14216157]
[1764464405100,2.09129714,136.11,136.09,7.34752213]
[1764464405308,2.09129714,136.1,136.08,0.1]
[1764464405620,2.78129714,136.09,136.08,0.1]
[1764464406315,5.72539606,136.09,136.08,0.1]
[1764464406516,2.78129714,136.09,136.08,0.1]
[1764464408640,12.65840556,136.11,136.08,0.8]
[1764464408812,20.10772514,136.11,136.08,0.8]
[1764464409632,20.79772514,136.11,136.08,0.8]
[1764464411128,17.57772514,136.11,136.08,0.8]
[1764464415938,7.44931958,136.11,136.08,8.14860242]
[1764464416131,2.09129714,136.11,136.09,0.7]
[1764464416333,2.78129714,136.11,136.09,0.7]
[1764464416723,2.78129714,136.11,136.08,7.44860242]
[1764464416924,2.78129714,136.11,136.08,8.14860242]
[1764464418012,2.78129714,136.11,136.08,7.44860242]
[1764464418217,2.78129714,136.11,136.09,0.7]
[1764464418643,2.09129714,136.1,136.08,0.8]
[1764464420547,2.09129714,136.09,136.08,0.1]
[1764464420760,2.78129714,136.09,136.08,0.1]
[1764464420928,8.94582951,136.09,136.08,0.1]
[1764464423353,16.29390798,136.09,136.08,0.1]
[1764464430740,13.34937561,136.09,136.08,0.1]
[1764464431132,3.22,136.09,136.08,0.77]
[1764464431333,5.31129714,136.09,136.08,0.77]
[1764464431548,5.31129714,136.09,136.08,0.1]
[1764464431929,2.94453237,136.1,136.08,0.77]
[1764464432133,12.65844861,136.11,136.08,0.77]
[1764464432435,20.10808994,136.11,136.08,0.77]
[1764464434256,20.78808994,136.11,136.08,0.77]
[1764464436789,10.56715147,136.11,136.08,0.77]
[1764464437447,13.33844861,136.11,136.08,0.77]
[1764464439053,2.77129714,136.1,136.08,0.77]
[1764464439356,2.09129714,136.1,136.08,0.77]
[1764464444339,2.77129714,136.09,136.08,0.1]
[1764464444542,10.11937561,136.09,136.08,0.1]
[1764464444862,17.56823569,136.09,136.08,0.1]
[1764464448563,18.7484296,136.09,136.08,0.1]
[1764464450766,21.9684296,136.09,136.08,0.1]
[1764464451454,25.23992065,136.09,136.08,0.1]
[1764464452252,21.9684296,136.09,136.08,0.1]
[1764464462372,21.23359475,136.09,136.08,0.1]
[1764464466969,21.73359475,136.09,136.08,0.1]
[1764464467171,21.23359475,136.09,136.08,0.1]
[1764464467550,21.73359475,136.09,136.08,0.1]
[1764464467951,21.23359475,136.09,136.08,0.76]
[1764464470660,21.23359475,136.09,136.08,0.1]
[1764464470661,21.73359475,136.09,136.08,0.1]
[1764464471778,25.0050858,136.09,136.08,0.1]
[1764464473278,21.73359475,136.09,136.08,0.1]
[1764464473962,21.23359475,136.09,136.08,0.1]
[1764464474752,21.73359475,136.09,136.08,0.1]
[1764464476877,21.23359475,136.09,136.08,0.1]
[1764464493797,17.9621037,136.09,136.08,0.1]
[1764464494103,21.23359475,136.09,136.08,0.1]
[1764464495578,21.23359475,136.09,136.08,0.8]
[1764464495778,21.23359475,136.09,136.08,0.1]
[1764464508411,21.23359475,136.09,136.08,0.8]
[1764464510431,21.23359475,136.09,136.08,0.1]
[1764464510604,20.05550327,136.09,136.08,0.1]
[1764464512533,20.05550327,136.09,136.08,0.8]
[1764464512827,36.36436727,136.09,136.08,0.1]
[1764464514528,36.36436727,136.09,136.08,0.8]
[1764464515407,36.36436727,136.09,136.08,0.1]
[1764464516430,36.36436727,136.09,136.08,0.81]
[1764464519115,34.2709677,136.09,136.08,0.81]
[1764464519320,28.91550719,136.09,136.08,0.81]
[1764464520807,25.69550719,136.09,136.08,0.81]
[1764464521010,28.91550719,136.09,136.08,0.81]
[1764464522739,25.69550719,136.09,136.08,0.81]
[1764464522929,28.91550719,136.09,136.08,0.81]
[1764464523230,7.29324362,136.09,136.08,0.81]
[1764464524322,7.34753857,136.1,136.08,0.81]
[1764464527037,7.34680758,136.12,136.09,2.09339957]
[1764464527534,7.34680758,136.12,136.1,0.71]
[1764464531144,9.44020715,136.12,136.1,0.71]
[1764464531944,7.34680758,136.12,136.1,0.71]
[1764464532146,12.65950928,136.13,136.1,0.71]
[1764464532632,2.09339957,136.12,136.1,0.71]
[1764464533847,12.65950928,136.13,136.1,0.71]
[1764464535349,43.92208084,136.19,136.1,10.15081421]
[1764464535534,2.09339957,136.17,136.11,2.09339957]
[1764464535727,16.308864,136.15,136.11,2.80339957]
[1764464535931,16.308864,136.15,136.1,7.34741464]
[1764464535932,16.308864,136.15,136.12,0.71]
[1764464539141,18.35871275,136.18,136.12,0.71]
[1764464539142,2.09339957,136.18,136.12,0.71]
[1764464539332,2.09339957,136.15,136.12,0.71]
[1764464539941,5.03641542,136.15,136.12,0.71]
[1764464541140,12.38134062,136.15,136.12,0.71]
[1764464542155,9.43832477,136.15,136.12,0.71]
[1764464542732,2.09339957,136.14,136.12,0.71]
[1764464543657,2.09339957,136.13,136.12,0.71]
[1764464550335,2.09339957,136.14,136.12,0.71]
[1764464551769,13.16035036,136.15,136.12,0.71]
[1764464551973,2.09339957,136.15,136.12,8.05626748]
[1764464552463,2.09339957,136.15,136.13,0.72]
[1764464552674,20.45362524,136.16,136.13,0.72]
[1764464552959,2.09339957,136.16,136.13,0.72]
[1764464553450,2.09339957,136.15,136.13,0.72]
[1764464553833,2.09339957,136.15,136.13,8.06590671]
[1764464554039,2.09339957,136.15,136.14,0.72]
[1764464555964,2.09339957,136.16,136.14,0.72]
[1764464556336,16.7834345,136.17,136.14,0.72]
[1764464558169,2.09339957,136.16,136.14,0.72]
[1764464560575,12.65930628,136.18,136.14,8.06512502]
[1764464560775,3.22,136.18,136.14,8.06512502]
[1764464560972,3.22,136.18,136.15,0.72]
[1764464562572,9.43660554,136.19,136.15,8.06443531]
[1764464562972,9.43660554,136.19,136.16,0.72]
[1764464563566,7.34320597,136.19,136.16,0.72]
[1764464563769,2.09339957,136.18,136.16,0.72]
[1764464566157,2.09339957,136.17,136.16,0.72]
[1764464569281,2.09339957,136.18,136.16,0.72]
[1764464570587,3.2658096,136.18,136.16,0.72]
[1764464571565,3.2658096,136.17,136.14,7.34528035]
[1764464571778,3.2658096,136.16,136.15,0.72]
[1764464573277,3.2658096,136.16,136.14,7.34528035]
[1764464573278,10.61013459,136.16,136.13,0.72]
[1764464573486,3.2658096,136.14,136.13,0.72]
[1764464575791,3.2658096,136.15,136.13,0.72]
[1764464580689,3.2658096,136.14,136.13,0.72]
[1764464584101,6.4858096,136.17,136.13,8.06553818]
[1764464584489,6.4858096,136.17,136.14,0.72]
[1764464584684,25.33518099,136.18,136.14,0.72]
[1764464584876,6.4858096,136.19,136.14,1.00432314]
[1764464585400,6.4858096,136.19,136.15,8.06484024]
[1764464585813,6.4858096,136.19,136.16,0.72]
[1764464589397,6.4858096,136.19,136.16,8.06393905]
[1764464589783,17.95319501,136.2,136.17,0.72]
[1764464590512,7.34254517,136.2,136.17,0.72]
[1764464590810,10.60835477,136.2,136.17,0.72]
[1764464597399,3.2658096,136.19,136.17,0.72]
[1764464597604,10.60835477,136.2,136.17,0.72]
[1764464597914,3.2658096,136.19,136.17,0.72]
[1764464599216,3.2658096,136.2,136.17,8.06346947]
[1764464599814,3.2658096,136.2,136.18,0.72]
[1764464612611,3.2658096,136.22,136.18,8.06301673]
[1764464613110,3.2658096,136.22,136.19,0.72]
[1764464613930,3.2658096,136.22,136.19,8.06232587]
[1764464614439,3.2658096,136.22,136.2,0.72]
[1764464626141,3.2658096,136.21,136.19,7.34232587]
[1764464626435,3.2658096,136.21,136.19,8.06232587]
[1764464627819,3.2658096,136.21,136.18,16.43749026]
[1764464628017,3.2658096,136.21,136.2,0.72]
[1764464629049,3.2658096,136.21,136.2,8.0621439]
[1764464629239,3.2658096,136.22,136.2,8.0621439]
[1764464630544,5.50856889,136.23,136.21,0.72]
[1764464638132,2.08856889,136.22,136.21,0.72]
[1764464639758,2.08856889,136.22,136.21,0.72]
[1764464658478,9.43070449,136.22,136.21,0.72]
[1764464659477,7.3421356,136.22,136.21,0.72]
[1764464659677,0.2,136.23,136.22,8.80994492]
[1764464659976,0.2,136.23,136.22,14.11851381]
[1764464660479,0.2,136.23,136.22,17.05871741]
[1764464661479,0.2,136.23,136.22,24.39978333]
[1764464662765,0.2,136.23,136.22,22.31121444]
[1764464662967,0.2,136.23,136.22,24.39978333]
[1764464667890,0.16511878,136.23,136.22,24.39978333]
[1764464672184,0.16511878,136.23,136.22,13.50126952]
[1764464672385,0.16511878,136.23,136.19,7.34217538]
[1764464672386,2.93368767,136.23,136.19,7.34217538]
[1764464672571,2.08856889,136.22,136.19,7.34217538]
[1764464672778,0.68,136.22,136.19,7.34217538]
[1764464673078,0.68,136.21,136.19,7.34217538]
[1764464675698,0.68,136.22,136.19,27.78745181]
[1764464675890,0.68,136.22,136.19,32.98220782]
[1764464676873,5.35987479,136.23,136.21,9.43017376]
[1764464677206,0.16511878,136.23,136.21,9.43017376]
[1764464677694,0.16511878,136.23,136.22,3.22]
[1764464677991,0.16511878,136.23,136.22,14.40283695]
[1764464678182,0.16511878,136.23,136.22,19.96271174]
[1764464679196,0.16511878,136.23,136.22,27.30377766]
[1764464687496,0.16511878,136.23,136.22,106.41264166]
[1764464689397,0.2,136.24,136.23,0.28432314]
[1764464689603,0.2,136.24,136.23,2.37289203]
[1764464690506,0.2,136.24,136.23,3.22409457]
[1764464690711,0.2,136.24,136.23,6.4838786]
[1764464691010,1e-08,136.24,136.23,15.29382352]
[1764464691308,0.2,136.25,136.23,15.29382352]
[1764464691508,0.2,136.25,136.24,14.10409542]
[1764464691711,0.2,136.25,136.24,76.90409542]
[1764464691913,0.2,136.25,136.24,79.84365081]
[1764464692521,0.2,136.25,136.24,25.85359573]
[1764464696138,0.2,136.26,136.25,0.28432314]
[1764464696342,0.2,136.26,136.25,3.54410717]
[1764464696716,0.2,136.26,136.25,6.48344655]
[1764464697213,0.9,136.26,136.25,14.9692843]
[1764464697626,0.9,136.26,136.25,15.25360744]
[1764464697826,0.9,136.26,136.25,15.11144587]
[1764464698240,0.9,136.26,136.25,15.25360744]
[1764464698432,0.9,136.26,136.25,22.59305698]
[1764464700434,4.15978403,136.26,136.25,2.93933938]
[1764464700625,4.15978403,136.26,136.23,7.34005095]
[1764464700814,3.95978403,136.25,136.23,7.34005095]
[1764464701216,0.7,136.24,136.23,7.34005095]
[1764464703336,0.7,136.25,136.24,9.09426806]
[1764464703515,0.7,136.25,136.24,12.31426806]
[1764464704337,0.7,136.25,136.24,19.65425631]
[1764464704540,0.7,136.25,136.24,22.59424381]
[1764464710045,0.2,136.26,136.24,22.59424381]
[1764464710251,0.9,136.26,136.24,25.85402784]
[1764464710441,0.9,136.26,136.24,19.65425631]
[1764464710639,0.9,136.26,136.25,12.03403949]
[1764464713129,0.9,136.26,136.25,19.37348903]
[1764464718564,0.2,136.26,136.25,79.2337176]
[1764464718745,0.2,136.28,136.26,16.59318714]
[1764464719070,1e-08,136.34,136.29,25.11880892]
[1764464719359,1e-08,136.35,136.34,12.35405209]
[1764464719580,0.1,136.36,136.35,0.28432314]
[1764464719741,0.1,136.36,136.35,28.66291609]
[1764464720141,0.9,136.39,136.35,16.59318714]
[1764464720347,0.9,136.39,136.36,15.59405209]
[1764464720554,0.2,136.39,136.36,26.18736501]
[1764464720741,0.87,136.39,136.38,25.40313206]
[1764464720946,0.87,136.39,136.38,3.50432314]
[1764464721440,0.2,136.39,136.38,3.50432314]
[1764464721660,0.2,136.39,136.38,6.76410717]
[1764464722137,0.2,136.39,136.38,3.50432314]
[1764464722336,0.2,136.39,136.38,6.76410717]
[1764464722537,0.2,136.39,136.38,14.0965606]
[1764464725362,0.2,136.39,136.38,10.83677657]
[1764464725661,0.2,136.39,136.38,14.0965606]
[1764464725895,0.2,136.39,136.38,93.2054246]
[1764464726174,0.1,136.4,136.39,9.09426806]
[1764464726376,0.7,136.43,136.39,12.35405209]
[1764464726560,0.7,136.43,136.42,12.35405209]
[1764464726761,0.7,136.43,136.42,15.57405209]
[1764464727078,0.7,136.44,136.42,12.31426806]